bitfinex-derivatives/quotes_SOLF0:USTF0_20250817
["timestamp","ask_amount","ask_price","bid_price","bid_amount"]
[1755420406768,7.96519409,192.37,192.36,4.19198561]
[1755420410367,7.96519409,192.37,192.36,2.86]
[1755420410563,7.96519409,192.37,192.36,4.19198561]
[1755420414773,7.96563748,192.37,192.36,4.19198561]
[1755420415473,7.96580147,192.37,192.36,4.19198561]
[1755420417284,11.97899647,192.37,192.36,4.19198561]
[1755420419369,11.97899647,192.37,192.36,2.86]
[1755420419569,11.97899647,192.37,192.36,4.19198561]
[1755420420775,11.97899647,192.37,192.36,2.86]
[1755420420976,11.97899647,192.37,192.36,4.19198561]
[1755420422879,7.063195,192.37,192.36,4.19198561]
[1755420423085,11.98007928,192.37,192.36,4.19198561]
[1755420423478,11.98035584,192.37,192.36,2.86]
[1755420423679,11.98033807,192.37,192.36,4.19198561]
[1755420431685,11.98033807,192.37,192.36,2.86]
[1755420431883,11.98033807,192.37,192.36,4.19198561]
[1755420432081,11.98282894,192.37,192.36,4.19198561]
[1755420433986,8.93282894,192.37,192.36,4.19198561]
[1755420434387,11.76282894,192.37,192.36,4.19198561]
[1755420440996,6.843195,192.37,192.36,2.86]
[1755420441198,11.76028145,192.37,192.36,2.86]
[1755420444800,11.76034962,192.37,192.36,2.86]
[1755420448203,8.93034962,192.37,192.36,2.86]
[1755420450207,11.98737165,192.37,192.36,2.86]
[1755420453508,8.93737165,192.37,192.36,2.86]
[1755420453707,3.05,192.42,192.36,2.97]
[1755420453910,5.84231536,192.46,192.41,2.97]
[1755420454210,3.05,192.45,192.41,2.97]
[1755420454609,8.89231536,192.45,192.41,2.97]
[1755420454810,3.05,192.44,192.4,2.97]
[1755420462211,3.05,192.44,192.41,1.33198561]
[1755420462417,3.05,192.44,192.43,4.30198561]
[1755420464712,3.05,192.45,192.43,4.30198561]
[1755420464913,3.05,192.45,192.44,2.97]
[1755420465612,3.95996545,192.45,192.44,2.97]
[1755420465813,8.69718906,192.45,192.44,2.97]
[1755420466819,11.74718906,192.45,192.44,2.97]
[1755420467216,7.00996545,192.45,192.44,2.97]
[1755420470021,3.95996545,192.45,192.44,2.97]
[1755420470818,3.07,192.48,192.44,2.97]
[1755420471018,7.02432698,192.47,192.46,2.77]
[1755420471319,3.07,192.51,192.46,2.77]
[1755420471521,8.68174814,192.5,192.49,2.77]
[1755420471721,11.75174814,192.5,192.49,2.77]
[1755420473126,7.02280455,192.5,192.49,2.77]
[1755420475129,3.07,192.5,192.49,2.77]
[1755420489036,3.07,192.52,192.49,2.77]
[1755420489445,3.07,192.55,192.49,4.10198561]
[1755420489640,3.9353421,192.54,192.5,2.77]
[1755420489940,3.07,192.56,192.5,2.77]
[1755420490141,3.93494686,192.55,192.52,2.77]
[1755420490345,3.07,192.56,192.52,2.77]
[1755420490537,3.93449138,192.55,192.52,2.77]
[1755420490734,3.07,192.56,192.52,2.77]
[1755420490937,3.93449138,192.55,192.52,2.77]
[1755420491237,3.07,192.55,192.52,2.77]
[1755420491742,3.07,192.59,192.53,1.33198561]
[1755420491943,350.45198561,192.6,192.54,2.77]
[1755420491944,3.07,192.57,192.54,2.77]
[1755420492144,3.07,192.59,192.54,2.77]
[1755420492347,3.93340638,192.58,192.54,2.77]
[1755420492643,3.07,192.57,192.54,2.77]
[1755420493045,3.07,192.57,192.56,2.77]
[1755420495442,350.45198561,192.6,192.56,2.77]
[1755420495642,3.07,192.58,192.56,2.77]
[1755420495851,3.07,192.57,192.56,2.77]
[1755420496237,7.00376952,192.57,192.56,2.77]
[1755420497351,3.07,192.57,192.56,2.77]
[1755420497751,5.26561054,192.58,192.53,1.33198561]
[1755420497954,2.84,192.55,192.54,3.07]
[1755420498250,2.84,192.57,192.54,3.07]
[1755420499650,2.84,192.56,192.54,3.07]
[1755420505359,2.84,192.57,192.54,3.07]
[1755420505959,1.33198561,192.59,192.54,3.07]
[1755420506158,8.64180812,192.58,192.54,3.07]
[1755420506360,6.77700766,192.57,192.54,3.07]
[1755420506560,2.84,192.57,192.54,3.07]
[1755420507255,3.93947745,192.56,192.54,3.07]
[1755420507561,2.84,192.56,192.54,3.07]
[1755420513365,1.33198561,192.59,192.54,3.07]
[1755420513565,2.84,192.55,192.54,3.07]
[1755420514265,6.78550427,192.55,192.54,3.07]
[1755420515371,6.78550427,192.55,192.53,3.07]
[1755420515569,6.78550427,192.54,192.53,3.07]
[1755420516260,3.94550427,192.54,192.53,3.07]
[1755420516461,2.84,192.53,192.5,3.07]
[1755420516679,6.78550427,192.52,192.5,3.07]
[1755420516866,2.84,192.52,192.5,3.07]
[1755420517571,1.33198561,192.55,192.5,3.07]
[1755420517770,2.84,192.53,192.5,3.07]
[1755420517968,3.94866641,192.52,192.5,3.07]
[1755420518271,2.84,192.52,192.5,3.07]
[1755420520070,2.84,192.54,192.5,3.07]
[1755420520272,11.50845363,192.53,192.5,3.07]
[1755420520467,3.94822056,192.52,192.5,3.07]
[1755420520671,2.84,192.53,192.5,3.07]
[1755420520875,3.94822056,192.52,192.5,3.07]
[1755420521074,2.84,192.53,192.5,3.07]
[1755420521275,3.94856915,192.52,192.5,3.07]
[1755420521572,2.84,192.53,192.5,3.07]
[1755420521773,3.94856915,192.52,192.5,3.07]
[1755420521968,2.84,192.53,192.5,3.07]
[1755420522173,3.94856915,192.52,192.5,3.07]
[1755420522375,2.84,192.53,192.5,3.07]
[1755420522670,3.94891018,192.52,192.5,3.07]
[1755420522875,2.84,192.55,192.5,3.07]
[1755420523074,8.66989089,192.54,192.52,3.07]
[1755420523275,3.94887772,192.53,192.52,3.07]
[1755420527177,3.95066408,192.53,192.52,3.07]
[1755420528174,8.65066564,192.53,192.52,3.07]
[1755420528877,11.65066564,192.53,192.52,3.07]
[1755420529076,8.65066564,192.53,192.52,3.07]
[1755420530071,11.65066564,192.53,192.52,3.07]
[1755420530875,6.95066408,192.53,192.52,3.07]
[1755420531077,11.65211209,192.53,192.52,3.07]
[1755420531479,11.65296045,192.53,192.52,3.07]
[1755420535377,8.65296045,192.53,192.52,3.07]
[1755420535986,11.65296045,192.53,192.52,3.07]
[1755420540089,11.65553057,192.53,192.52,3.07]
[1755420542289,11.65566331,192.53,192.52,3.07]
[1755420545601,8.65566331,192.53,192.5,2.97]
[1755420545790,3.0,192.51,192.5,2.97]
[1755420545987,11.65566331,192.51,192.5,2.97]
[1755420546394,3.0,192.5,192.46,2.97]
[1755420546595,3.0,192.48,192.46,2.97]
[1755420546897,11.65566331,192.47,192.46,2.97]
[1755420547294,6.95066408,192.47,192.46,2.97]
[1755420548993,3.95066408,192.47,192.46,2.97]
[1755420552999,6.95066408,192.47,192.46,2.97]
[1755420553500,1.33198561,192.52,192.46,2.97]
[1755420553501,3.0,192.54,192.47,2.97]
[1755420553702,8.66117131,192.53,192.5,1.33198561]
[1755420553901,3.97107815,192.52,192.51,2.97]
[1755420554102,6.97107815,192.52,192.51,2.97]
[1755420554298,11.661295,192.52,192.51,2.97]
[1755420557295,6.97107815,192.52,192.51,2.97]
[1755420557590,11.6623396,192.52,192.51,2.97]
[1755420557802,11.66250104,192.52,192.51,2.97]
[1755420557998,6.97107815,192.52,192.51,2.97]
[1755420558302,11.66250104,192.52,192.51,2.97]
[1755420562706,11.66250104,192.52,192.49,4.28198561]
[1755420562899,2.89,192.5,192.49,2.95]
[1755420563095,6.86107815,192.5,192.49,2.95]
[1755420566005,3.97107815,192.5,192.49,2.95]
[1755420566607,2.89,192.52,192.49,4.28198561]
[1755420566814,6.86368353,192.51,192.5,2.95]
[1755420571412,3.97368353,192.51,192.48,1.33198561]
[1755420571609,6.86368353,192.5,192.49,2.95]
[1755420574014,2.89,192.51,192.49,2.95]
[1755420576823,3.97435523,192.5,192.49,2.95]
[1755420577724,6.86435523,192.5,192.49,2.95]
[1755420580119,6.86435523,192.5,192.48,4.28198561]
[1755420580324,3.97435523,192.49,192.48,1.33198561]
[1755420580725,3.97435523,192.49,192.48,4.28198561]
[1755420581919,3.97435523,192.49,192.48,2.95]
[1755420582124,6.86435523,192.49,192.48,2.95]
[1755420585521,6.86435523,192.49,192.48,4.28198561]
[1755420585921,3.97435523,192.49,192.48,4.28198561]
[1755420589331,2.89,192.51,192.48,4.28198561]
[1755420589528,3.97003478,192.5,192.49,2.94]
[1755420590933,6.95003478,192.5,192.49,2.94]
[1755420595539,3.97003478,192.5,192.49,2.94]
[1755420599541,126.87198561,192.58,192.49,2.94]
[1755420599542,2.98,192.53,192.49,2.94]
[1755420599743,3.97363913,192.52,192.49,2.94]
[1755420599930,3.97363913,192.51,192.49,2.94]
[1755420600134,2.98,192.53,192.49,2.94]
[1755420600341,3.97359437,192.52,192.49,2.94]
[1755420600642,3.97359437,192.51,192.49,2.94]
[1755420600839,2.98,192.53,192.5,1.33198561]
[1755420601036,6.95359437,192.52,192.51,2.94]
[1755420602144,6.95359437,192.52,192.51,4.27198561]
[1755420602636,6.95359437,192.52,192.51,2.94]
[1755420602841,6.95359437,192.52,192.51,4.27198561]
[1755420603138,3.97359437,192.52,192.51,4.27198561]
[1755420603536,2.98,192.56,192.51,4.27198561]
[1755420603741,11.64081765,192.55,192.54,4.27198561]
[1755420605142,8.66081765,192.55,192.54,4.27198561]
[1755420605343,3.97201283,192.55,192.54,4.27198561]
[1755420607936,2.98,192.57,192.54,4.27198561]
[1755420608143,2.98,192.57,192.56,1.33198561]
[1755420608444,6.92828599,192.57,192.56,4.27198561]
[1755420608941,6.92828599,192.57,192.56,2.94]
[1755420609251,6.92828599,192.57,192.56,4.27198561]
[1755420609644,6.92828599,192.57,192.56,2.94]
[1755420609847,6.92828599,192.57,192.56,4.27198561]
[1755420610449,6.92828599,192.57,192.56,2.94]
[1755420610647,6.92828599,192.57,192.56,4.27198561]
[1755420611049,6.92828599,192.57,192.56,2.94]
[1755420611350,6.92828599,192.57,192.56,4.27198561]
[1755420618153,2.98,192.57,192.56,4.27198561]
[1755420618354,2.98,192.57,192.56,2.94]
[1755420618556,2.98,192.57,192.56,4.27198561]
[1755420619053,48.64925017,192.63,192.56,4.27198561]
[1755420619252,8.60551104,192.62,192.57,2.89]
[1755420619454,2.79,192.6,192.57,2.89]
[1755420619755,2.79,192.58,192.57,2.89]
[1755420619951,6.73213905,192.58,192.57,2.89]
[1755420622957,6.73213905,192.58,192.57,4.22198561]
[1755420624251,3.94213905,192.58,192.57,4.22198561]
[1755420624456,2.79,192.62,192.59,2.89]
[1755420624645,2.79,192.6,192.59,4.22198561]
[1755420624952,6.73071793,192.6,192.59,4.22198561]
[1755420630261,3.94071793,192.6,192.59,4.22198561]
[1755420630559,3.94071793,192.6,192.59,2.89]
[1755420630761,3.94071793,192.6,192.59,4.22198561]
[1755420631151,2.79,192.62,192.59,1.33198561]
[1755420631349,6.73020047,192.61,192.6,2.89]
[1755420632561,3.94020047,192.61,192.6,2.89]
[1755420632766,2.79,192.64,192.6,2.89]
[1755420632958,3.93989665,192.63,192.61,1.33198561]
[1755420633262,2.79,192.62,192.61,1.33198561]
[1755420633655,2.79,192.62,192.61,4.22198561]
[1755420643159,2.79,192.67,192.61,1.33198561]
[1755420643358,2.79,192.65,192.62,2.89]
[1755420643573,3.93605717,192.64,192.62,2.89]
[1755420643763,2.79,192.64,192.62,2.89]
[1755420644267,2.79,192.71,192.64,2.89]
[1755420644465,2.79,192.69,192.66,2.89]
[1755420644663,8.61158112,192.68,192.66,2.89]
[1755420644868,11.40158112,192.67,192.66,2.89]
[1755420647672,11.40052948,192.67,192.66,2.89]
[1755420650873,11.39994979,192.67,192.66,2.89]
[1755420651068,6.72581995,192.67,192.66,2.89]
[1755420651573,3.93581995,192.67,192.66,2.89]
[1755420651769,3.93581995,192.67,192.66,4.22198561]
[1755420652777,3.93581995,192.67,192.66,2.89]
[1755420652975,3.93581995,192.67,192.66,4.22198561]
[1755420653177,3.03,192.68,192.66,1.33198561]
[1755420653373,3.03,192.68,192.67,2.96]
[1755420653674,6.96272831,192.68,192.67,2.96]
[1755420654378,3.93272831,192.68,192.67,2.96]
[1755420654571,3.03,192.71,192.67,2.96]
[1755420654775,3.03,192.69,192.68,1.33198561]
[1755420654970,6.96209955,192.69,192.68,1.33198561]
[1755420655170,6.96209955,192.69,192.68,4.29198561]
[1755420655776,3.93209955,192.69,192.68,4.29198561]
[1755420656673,3.03,192.71,192.68,1.33198561]
[1755420656977,125.66,192.74,192.68,1.33198561]
[1755420656978,6.96078249,192.7,192.69,2.96]
[1755420657383,3.03,192.73,192.69,2.96]
[1755420657680,6.96008256,192.72,192.69,2.96]
[1755420657978,6.96008256,192.71,192.69,2.96]
[1755420658177,128.69,192.74,192.7,1.33198561]
[1755420658375,3.92925468,192.73,192.71,2.96]
[1755420658576,3.92925468,192.72,192.71,2.96]
[1755420658775,6.95925468,192.72,192.71,2.96]
[1755420659480,3.03,192.71,192.69,4.29198561]
[1755420659777,348.8,192.78,192.7,2.96]
[1755420660080,8.59443039,192.77,192.72,2.96]
[1755420660270,3.03,192.74,192.72,2.96]
[1755420660469,6.95784417,192.73,192.52,2.96]
[1755420660679,3.03,192.71,192.69,2.96]
[1755420660879,3.03,192.73,192.7,2.96]
[1755420661080,4.36198561,192.78,192.71,2.96]
[1755420661376,3.03,192.75,192.74,2.96]
[1755420661578,3.03,192.82,192.67,2.96]
[1755420661786,3.03,192.8,192.77,2.96]
[1755420662080,3.03,192.8,192.78,2.96]
[1755420662277,3.03,192.82,192.79,2.96]
[1755420662510,3.03,192.8,192.66,77.23452241]
[1755420662682,3.03,192.82,192.79,1.33198561]
[1755420662879,3.92040548,192.81,192.66,77.23452241]
[1755420663081,3.03,192.78,192.74,2.96]
[1755420663489,130.00302826,192.85,192.74,1.33198561]
[1755420663679,4.36198561,192.83,192.77,4.29198561]
[1755420663882,3.03,192.81,192.76,1.33198561]
[1755420664073,3.03,192.81,192.77,2.96]
[1755420664281,3.03,192.79,192.77,2.96]
[1755420664478,1.33198561,192.78,192.73,2.96]
[1755420664681,3.03,192.73,192.67,4.29198561]
[1755420664882,3.03,192.72,192.69,1.33198561]
[1755420665082,3.03,192.84,192.72,2.96]
[1755420665287,3.03,192.79,192.75,1.33198561]
[1755420665591,3.03,192.81,192.78,2.96]
[1755420665786,348.66,192.89,192.81,2.96]
[1755420666090,3.03,192.85,192.84,2.96]
[1755420666384,3.03,192.85,192.82,2.96]
[1755420666587,3.03,192.85,192.81,2.96]
[1755420666983,3.91209345,192.84,192.81,2.96]
[1755420667185,348.66,192.89,192.8,1.33198561]
[1755420667385,8.55570215,192.88,192.82,1.33198561]
[1755420667688,3.03,192.87,192.85,2.96]
[1755420667989,3.03,192.97,192.87,2.96]
[1755420668192,3.03,192.92,192.88,2.96]
[1755420668390,8.55417942,192.91,192.88,2.96]
[1755420668586,3.03,192.89,192.88,2.96]
[1755420668886,130.08,192.96,192.66,77.23452241]
[1755420669087,1.33198561,192.93,192.66,77.23452241]
[1755420669286,3.03,192.91,192.86,1.33198561]
[1755420669491,3.03,192.91,192.87,2.96]
[1755420669682,3.03,192.95,192.88,1.33198561]
[1755420669887,8.53801408,192.94,192.91,2.96]
[1755420670092,3.03,192.97,192.76,2.96]
[1755420670294,3.90071011,192.96,192.75,348.52]
[1755420670500,3.03,192.96,192.95,2.96]
[1755420670689,3.03,192.99,192.91,2.96]
[1755420670997,3.03,193.11,192.97,2.96]
[1755420671196,8.52245395,193.1,192.85,2.96]
[1755420671386,3.03,193.08,192.85,2.96]
[1755420671591,3.03,193.06,192.85,2.96]
[1755420671897,3.03,193.09,193.0,2.96]
[1755420672097,3.03,193.07,193.0,2.96]
[1755420672296,6.91602581,193.06,193.0,5.02693327]
[1755420672505,3.03,193.09,193.01,2.96]
[1755420672689,3.03,193.07,193.01,2.96]
[1755420672997,3.03,193.05,193.02,2.96]
[1755420673195,3.03,193.03,192.95,2.96]
[1755420673386,3.03,193.09,192.95,2.96]
[1755420673586,3.03,193.07,192.78,141.36]
[1755420673788,135.62,193.1,192.9,2.96]
[1755420673789,3.03,193.01,192.9,2.96]
[1755420673991,3.03,192.99,192.9,2.96]
[1755420674196,5.09693327,192.97,192.9,2.96]
[1755420674394,3.03,193.02,192.9,2.96]
[1755420674598,3.03,193.0,192.9,2.96]
[1755420674900,3.03,192.98,192.9,2.96]
[1755420675098,3.03,192.96,192.9,2.96]
[1755420675396,3.03,192.94,192.76,2.96]
[1755420675596,3.03,192.92,192.81,2.96]
[1755420675793,3.87370266,192.91,192.81,2.96]
[1755420675993,3.03,192.9,192.81,2.96]
[1755420676899,3.03,192.88,192.81,2.96]
[1755420677098,5.84231536,193.07,192.87,2.96]
[1755420677299,11.51082183,192.97,192.93,2.96]
[1755420677604,2.9,193.03,192.96,2.9]
[1755420678098,2.9,193.08,192.98,2.06693327]
[1755420678305,3.87009109,193.07,192.99,2.9]
[1755420678497,348.3,193.19,192.99,2.9]
[1755420678498,2.9,193.18,192.99,2.9]
[1755420678695,2.9,193.16,192.96,2.06693327]
[1755420678901,2.9,193.14,193.05,2.9]
[1755420679191,2.9,193.12,193.05,2.9]
[1755420680203,2.9,193.12,193.05,4.96693327]
[1755420680500,0.90156608,193.19,193.06,2.9]
[1755420680696,2.9,193.17,193.06,2.9]
[1755420680895,2.9,193.15,193.06,2.9]
[1755420681101,2.9,193.13,193.06,2.9]
[1755420681297,8.35415082,193.14,192.89,348.3]
[1755420681298,2.9,193.11,192.9,2.9]
[1755420681495,2.9,193.09,192.91,2.9]
[1755420681700,2.9,193.09,192.89,348.3]
[1755420681701,2.9,193.07,192.95,2.9]
[1755420682096,2.9,193.07,192.96,2.9]
[1755420682492,2.9,193.16,192.96,2.9]
[1755420682801,3.20966216,193.13,193.0,2.9]
[1755420683008,2.9,193.11,193.0,2.9]
[1755420683303,2.9,193.08,192.89,348.3]
[1755420683502,2.9,193.06,192.89,348.3]
[1755420683703,2.9,193.04,192.96,2.9]
[1755420684307,2.9,193.1,193.01,2.9]
[1755420684605,2.9,193.08,193.01,2.9]
[1755420684810,4.49144255,193.07,193.01,2.9]
[1755420685012,2.9,193.05,192.99,2.9]
[1755420685299,4.49185171,193.04,192.99,2.9]
[1755420685500,2.9,193.05,192.82,163.98]
[1755420685501,348.1,193.11,192.97,3.20966216]
[1755420685710,2.9,193.09,192.98,2.9]
[1755420685895,2.9,193.07,192.98,2.9]
[1755420686205,2.9,193.11,193.05,2.9]
[1755420686410,3.80156608,193.19,193.09,2.9]
[1755420686703,8.33630188,193.18,193.09,2.9]
[1755420686902,2.9,193.19,193.09,2.9]
[1755420687102,2.9,193.17,193.09,2.9]
[1755420687508,2.9,193.26,193.13,2.9]
[1755420687808,2.9,193.24,193.16,2.9]
[1755420688104,8.2879577,193.23,193.16,2.9]
[1755420688299,2.9,193.31,193.2,2.9]
[1755420688497,2.9,193.29,193.2,2.9]
[1755420688708,8.27785434,193.28,193.2,2.9]
[1755420688905,3.83810697,193.27,193.2,6.10966216]
[1755420689203,1.07822142,193.33,193.26,3.20966216]
[1755420689409,1.07822142,193.33,193.31,2.9]
[1755420689799,1.07822142,193.33,193.07,2.9]
[1755420689994,1.07822142,193.33,193.26,6.10966216]
[1755420690202,1.07822142,193.33,193.27,2.9]
[1755420690405,2.9,193.45,193.32,3.20966216]
[1755420690713,2.9,193.43,193.33,2.9]
[1755420690919,2.9,193.41,193.33,2.9]
[1755420691113,2.9,193.41,193.27,2.9]
[1755420691910,3.81778572,193.4,193.32,3.20966216]
[1755420692104,2.9,193.42,193.33,2.9]
[1755420692306,2.9,193.41,193.33,2.9]
[1755420693299,2.9,193.41,193.33,6.10966216]
[1755420693503,2.9,193.41,193.34,2.9]
[1755420695008,2.9,193.45,193.34,2.9]
[1755420695807,2.9,193.55,193.38,3.20966216]
[1755420696010,2.9,193.55,193.42,3.20966216]
[1755420696207,2.9,193.55,193.44,2.9]
[1755420697911,2.9,193.55,193.45,2.9]
[1755420698108,350.6,193.58,193.45,2.9]
[1755420698306,2.9,193.57,193.46,2.9]
[1755420705816,171.04,193.56,193.46,2.9]
[1755420706024,2.9,193.55,193.46,2.9]
[1755420706320,6.10966216,193.55,193.44,2.9]
[1755420706627,2.9,193.54,193.44,2.9]
[1755420707419,3.0,193.5,193.38,2.9]
[1755420707625,3.0,193.48,193.38,2.9]
[1755420708621,348.59950372,193.58,193.38,2.9]
[1755420708622,3.0,193.46,193.38,2.9]
[1755420708817,3.0,193.46,193.33,3.20966216]
[1755420709019,3.0,193.46,193.36,2.84]
[1755420709325,173.32966216,193.47,193.22,347.28]
[1755420709326,3.0,193.42,193.26,2.84]
[1755420710312,3.0,193.4,193.26,2.84]
[1755420710525,3.0,193.36,193.26,2.84]
[1755420710720,3.0,193.35,193.26,2.84]
[1755420712226,6.20966216,193.35,193.26,2.84]
[1755420712523,3.0,193.34,193.26,2.84]
[1755420713020,3.0,193.34,193.17,3.20966216]
[1755420713223,3.0,193.34,193.23,2.84]
[1755420713814,3.0,193.42,193.23,2.84]
[1755420714018,3.20966216,193.38,193.23,2.84]
[1755420714215,168.66,193.37,193.23,2.84]
[1755420714420,3.0,193.36,193.23,2.84]
[1755420714626,3.0,193.35,193.23,2.84]
[1755420714924,3.0,193.33,193.23,2.84]
[1755420716418,3.20966216,193.34,193.23,2.84]
[1755420716616,3.0,193.32,193.23,2.84]
[1755420719121,3.0,193.39,193.23,2.84]
[1755420719326,3.0,193.36,193.23,2.84]
[1755420719530,3.0,193.34,193.23,2.84]
[1755420720225,3.8196251,193.33,193.23,2.84]
[1755420720428,6.20966216,193.31,193.23,2.84]
[1755420720726,3.20966216,193.27,193.13,2.84]
[1755420721027,3.82104033,193.26,193.13,2.84]
[1755420721230,6.82665325,193.25,193.13,2.84]
[1755420721423,3.0,193.23,193.13,2.84]
[1755420721729,3.0,193.23,193.05,3.20966216]
[1755420721730,3.0,193.21,193.06,2.84]
[1755420722333,3.0,193.19,193.06,2.84]
[1755420722534,3.20966216,193.21,193.06,2.84]
[1755420722535,3.0,193.17,193.06,2.84]
[1755420722727,3.0,193.15,193.06,2.84]
[1755420723232,3.20966216,193.17,193.06,2.84]
[1755420723233,3.0,193.13,193.06,2.84]
[1755420723943,3.83690977,193.12,193.06,2.84]
[1755420724128,3.20966216,193.17,192.99,347.46]
[1755420724326,0.90134425,193.2,193.07,2.84]
[1755420724327,3.0,193.15,193.07,2.84]
[1755420724630,3.0,193.13,193.07,2.84]
[1755420724827,3.0,193.17,193.07,2.84]
[1755420725032,3.83621016,193.16,193.07,2.84]
[1755420725231,3.0,193.21,193.09,3.20966216]
[1755420725429,3.0,193.19,193.1,2.84]
[1755420725727,3.0,193.19,192.99,347.46]
[1755420725728,3.0,193.25,193.12,2.84]
[1755420725927,3.83513224,193.24,193.12,2.84]
[1755420726126,3.0,193.22,193.12,2.84]
[1755420726321,3.0,193.2,193.12,2.84]
[1755420726524,3.83513224,193.19,193.12,2.84]
[1755420726733,3.0,193.23,193.12,2.84]
[1755420726937,3.83716677,193.22,193.12,2.84]
[1755420727129,3.0,193.23,193.12,2.84]
[1755420727726,3.83903195,193.22,193.12,2.84]
[1755420727933,3.0,193.23,193.12,2.84]
[1755420728133,3.83910141,193.22,193.12,2.84]
[1755420728434,3.0,193.23,193.12,2.84]
[1755420728636,3.84160051,193.22,193.12,2.84]
[1755420728836,3.0,193.26,193.12,2.84]
[1755420729040,3.0,193.24,193.12,2.84]
[1755420729335,3.0,193.22,193.12,2.84]
[1755420729526,3.84129364,193.21,193.12,2.84]
[1755420729732,6.84129364,193.2,193.12,2.84]
[1755420729930,3.0,193.18,193.12,2.84]
[1755420730235,3.84129364,193.17,193.12,2.84]
[1755420730429,3.0,193.14,193.08,2.84]
[1755420730630,3.0,193.12,193.08,2.84]
[1755420730823,3.0,193.12,193.09,2.84]
[1755420731023,3.0,193.11,193.09,2.84]
[1755420731437,3.0,193.21,193.09,2.84]
[1755420731628,3.84947461,193.2,193.09,2.84]
[1755420731826,3.84947461,193.19,193.09,2.84]
[1755420732031,3.0,193.21,193.09,2.84]
[1755420732032,3.84947461,193.18,193.09,2.84]
[1755420732224,3.0,193.21,193.09,2.84]
[1755420732529,3.84923948,193.2,193.09,2.84]
[1755420732727,3.0,193.25,193.09,2.84]
[1755420732939,3.84931327,193.24,193.09,2.84]
[1755420733141,3.84931327,193.23,193.09,2.84]
[1755420733334,3.0,193.21,193.09,2.84]
[1755420733633,3.84931327,193.2,193.09,2.84]
[1755420734537,6.84878468,193.19,193.09,2.84]
[1755420734836,3.84878468,193.18,193.09,2.84]
[1755420735842,3.0,193.16,193.09,2.84]
[1755420736040,3.0,193.14,193.01,2.84]
[1755420736242,3.0,193.12,193.01,2.84]
[1755420736430,3.84828174,193.11,193.01,2.84]
[1755420736635,3.0,193.12,193.01,2.84]
[1755420736835,3.84828174,193.11,193.01,2.84]
[1755420737136,3.0,193.12,193.01,2.84]
[1755420739042,5.84231536,193.25,193.01,7.94629032]
[1755420739242,2.81,193.23,193.02,2.8]
[1755420739443,2.81,193.21,193.02,2.8]
[1755420739638,2.81,193.19,193.02,2.8]
[1755420739841,2.81,193.17,193.02,2.8]
[1755420740032,2.81,193.15,193.02,2.8]
[1755420743045,2.81,193.15,193.04,2.8]
[1755420743739,2.81,193.25,193.04,2.8]
[1755420744046,2.81,193.23,193.04,167.44]